Cogmind - Beta 14 @@@ ROGUE MODE // 2024.09.04 @ 13:23:57 Player: Bardic Entropy Result: Self-destructed Performance ------------- Evolutions (0) 0 Regions Visited (4) 800 Robots Destroyed (19) 95 Value Destroyed (223) 223 Prototype IDs (0) 0 Alien Tech Used (0) 0 Bonus (-75) -75 TOTAL SCORE: 1043 Bonus ------- Friendly Fire -75 Cogmind --------- Core Integrity 221/250 Matter 215/300 Energy 160/160 System Corruption 0% Temperature Cool (0) Movement Rolling (125) Ox3 Location -9/Mines Parts ------- > --- POWER (1) -------- Light Nuclear Core > --- PROPULSION (2) --- Light Treads Wheel > --- UTILITY (2) ------ Large Storage Unit Improved Sensor Array > --- WEAPON (2) ------- Assault Rifle Heavy Assault Rifle > --- INVENTORY (15) --- Nuclear Core Wheel High-capacity Matter Pod (200) Advanced Targeting Computer Assault Rifle Minigun Mini Grenade Launcher Plasma Cutter Hammer Peak State ------------ > --- POWER ------------ Light Nuclear Core > --- PROPULSION ------- Light Treads Wheel > --- UTILITY ---------- Large Storage Unit Improved Sensor Array > --- WEAPON ----------- Assault Rifle Heavy Assault Rifle > --- INVENTORY -------- Nuclear Core Wheel High-capacity Matter Pod Advanced Targeting Computer Assault Rifle Minigun Mini Grenade Launcher Plasma Cutter Hammer [Rating: 13] Favorites ----------- Power Light Nuclear Core Engine Light Ion Engine Power Core Light Nuclear Core Propulsion Wheel Treads Light Treads Wheel Wheel Utility Small Storage Unit Device Sensor Array Storage Small Storage Unit Processor Signal Interpreter Weapon Assault Rifle Ballistic Gun Assault Rifle Launcher Mini Grenade Launcher Build | -11 -10 -10 -10 -9 ------- Run | Yrd Mat Min Exi Min Slots Evolved . | . . . . . Power . | . . . . . Propulsion . | . . . . . Utility . | . . . . . Weapon . | . . . . . Parts Attached 21 | 6 1 6 2 6 Power 3 | 1 . 2 . . Engine 1 | 1 . . . . Core 2 | . . 2 . . Reactor . | . . . . . Propulsion 5 | 2 . 3 . . Treads 2 | 1 . 1 . . Leg . | . . . . . Wheel 3 | 1 . 2 . . Hover . | . . . . . Flight . | . . . . . Utility 6 | 1 1 1 2 1 Device 3 | . 1 1 . 1 Storage 2 | 1 . . 1 . Processor 1 | . . . 1 . Hackware . | . . . . . Protection . | . . . . . Artifact . | . . . . . Weapon 7 | 2 . . . 5 Energy Gun . | . . . . . Energy Cannon . | . . . . . Ballistic Gun 5 | 2 . . . 3 Ballistic Cannon . | . . . . . Launcher 2 | . . . . 2 Special Weapon . | . . . . . Impact Weapon . | . . . . . Slashing Weapon . | . . . . . Piercing Weapon . | . . . . . Special Melee Weapon . | . . . . . Unidentified Prototypes . | . . . . . Parts Lost . | . . . . . Power . | . . . . . Propulsion . | . . . . . Utility . | . . . . . Weapon . | . . . . . Highest Loss Streak . | . . . . . To Critical Strikes . | . . . . . Average Slot Usage (%) 99 | . 98 100 100 100 Engine 6 | . 14 9 . . Core 7 | . . 4 14 14 Treads 14 | . 14 14 14 14 Wheel 14 | . 14 14 14 14 Device 7 | . 12 14 2 . Storage 14 | . 14 14 14 14 Processor 5 | . . . 12 14 Ballistic Gun 27 | . 28 28 28 27 Peak Build Rating 13 | 6 7 12 12 13 Average Rating 8 | 5 6 8 10 11 On Entrance 7 | . 6 7 12 10 Naked Turns . | . . . . . Heaviest Build 31 | 12 13 17 29 31 Greatest Support 20 | 10 20 20 10 20 Greatest Overweight (x) 3 | 1 1 1 2 3 Average Overweight (x) . | . . . 1 2 Largest Inventory Capacity 15 | 8 8 8 15 15 Average Capacity 9 | 7 8 8 8 15 Most Carried 10 | 2 8 8 8 10 Average Carried 7 | 1 5 7 7 9 Final Capacity 15 | 8 8 8 15 15 Final Carried 9 | 2 8 8 8 9 Class Distribution -------------------- 100% | Mutant Dominant Class ---------------- Mutant | -10/Materials Mutant | -10/Mines Mutant | -10/Exiles Mutant | -9/Mines Resources | -11 -10 -10 -10 -9 ----------- Run | Yrd Mat Min Exi Min Matter Collected 649 | 296 200 36 76 41 Remotely . | . . . . . Salvage Created 379 | 99 143 94 . 43 Parts 32 | 3 15 4 . 10 Haulers Intercepted 1 | . 1 . . . Recyclers Shooed . | . . . . . Parts Field Recycled . | . . . . . Retrieved Matter . | . . . . . Parts Self-Destructed . | . . . . . Prevented . | . . . . . Kills | -11 -10 -10 -10 -9 ------- Run | Yrd Mat Min Exi Min Combat Hostiles Destroyed 13 | . 3 2 . 8 Guns 7 | . 3 2 . 2 AOE 6 | . . . . 6 Classes Destroyed 8 | 2 4 1 . 1 Worker 1 | . 1 . . . Tunneler 1 | 1 . . . . Hauler 1 | . 1 . . . Recycler 1 | 1 . . . . Operator 1 | . . . . 1 Watcher 1 | . 1 . . . Swarmer 11 | . 3 . . 8 Grunt 2 | . . 2 . . Best Kill Streak 8 | 2 3 2 . 8 Combat Bots Only 8 | . 3 2 . 8 Max Kills in Single Turn 3 | 1 1 1 . 3 Gunslinging . | . . . . . Exploded 2 | . . . . 2 Melee . | . . . . . Uniques/NPCs Destroyed . | . . . . . Combat | -11 -10 -10 -10 -9 -------- Run | Yrd Mat Min Exi Min Hostile Shots Fired 46 | . 15 12 . 19 Missed 12 | . 2 2 . 8 Damage Taken 354 | . 98 131 . 125 Core 29 | . 8 12 . 9 Absorbed by Shields . | . . . . . Core Remaining (%) 100 | 100 . . . . Volleys Fired 34 | 6 15 7 . 6 Largest 2 | 2 2 2 . 2 Hottest 50 | 40 40 40 . 50 Shots Fired 63 | 12 30 14 . 7 Gun 58 | 12 30 14 . 2 Cannon . | . . . . . Launcher 5 | . . . . 5 Special . | . . . . . Kinetic 58 | 12 30 14 . 2 Thermal . | . . . . . Explosive 5 | . . . . 5 Electromagnetic . | . . . . . Robot Hit Streak 8 | 2 6 8 . 1 Robot Miss Streak 4 | 4 2 1 . . Penetration Max . | . . . . . Secondary Targets 2 | . 1 1 . . Max Gunslinging Chain 1 | . 1 1 . . Shots Hit Robots 33 | 5 17 10 . 1 Core Hits 25 | 2 8 5 . 10 Critical Kills . | . . . . . Critical Parts Destroyed . | . . . . . Critical Strikes . | . . . . . Melee Attacks . | . . . . . Impact . | . . . . . Slashing . | . . . . . Piercing . | . . . . . Sneak Attacks . | . . . . . Combat Hostiles . | . . . . . Follow-up Attacks . | . . . . . Damage Inflicted 1004 | 92 270 124 . 518 Guns 515 | 92 270 124 . 29 Cannons . | . . . . . Explosions 489 | . . . . 489 Melee . | . . . . . Ramming . | . . . . . Kinetic 515 | 92 270 124 . 29 Thermal . | . . . . . Explosive 489 | . . . . 489 Electromagnetic . | . . . . . Impact . | . . . . . Slashing . | . . . . . Piercing . | . . . . . Highest Corruption . | . . . . . Average Corruption . | . . . . . Corruption Purged . | . . . . . Corruption Blocked . | . . . . . Overload Shots . | . . . . . Overflow Damage . | . . . . . Projectiles . | . . . . . Explosions . | . . . . . Melee . | . . . . . Knockbacks . | . . . . . Impact . | . . . . . Kinetic . | . . . . . Secondary . | . . . . . Self-Inflicted Damage 33 | . . . . 33 Shots 1 | . . . . 1 Rammed . | . . . . . Targets Rammed . | . . . . . Kicked . | . . . . . Crushed . | . . . . . Highest Temperature 9 | . . 9 . . Average Temperature 4 | . . 4 . . Received Heat Transfer 72 | . . 72 . . Siege Activations . | . . . . . Robots Corrupted . | . . . . . Combat Hostiles . | . . . . . Parts Fried . | . . . . . Impact Corruptions . | . . . . . Robots Melted . | . . . . . Combat Hostiles . | . . . . . Parts Melted . | . . . . . Heat Transferred . | . . . . . Parts Sabotaged . | . . . . . Parts Stolen . | . . . . . Parts Stripped . | . . . . . Power Chain Reactions . | . . . . . Alert | -11 -10 -10 -10 -9 ------- Run | Yrd Mat Min Exi Min Peak Influence 204 | 10 114 94 . 204 Initial 44 | . 6 44 . . Average 40 | 3 45 56 . 17 Maximum Alert Level 1 | . . . . 1 Low Security (%) 98 | 100 100 100 . 94 Level 1 1 | . . . . 5 Level 2 . | . . . . . Level 3 . | . . . . . Level 4 . | . . . . . Level 5 . | . . . . . High Security . | . . . . . Max Security . | . . . . . Squads Dispatched . | . . . . . Investigation . | . . . . . Extermination . | . . . . . Reinforcement . | . . . . . Assault . | . . . . . Garrison . | . . . . . Intercept . | . . . . . Searches Triggered . | . . . . . Construction Impeded . | . . . . . Haulers Reinforced . | . . . . . Active Scanning Responses . | . . . . . Cargo Convoy Interrupts . | . . . . . Stealth | -11 -10 -10 -10 -9 --------- Run | Yrd Mat Min Exi Min Distress Signals . | . . . . . Communications Jammed . | . . . . . Distress Signals . | . . . . . Times Spotted 21 | . 6 2 . 13 Peak Tracking Total 7 | . 3 2 . 7 Tactical Retreats 1 | . 1 . . . Traps | -11 -10 -10 -10 -9 ------- Run | Yrd Mat Min Exi Min Traps Triggered . | . . . . . Indirectly . | . . . . . Trap Hack Attempts . | . . . . . Triggered . | . . . . . Disarmed . | . . . . . Reprogrammed . | . . . . . Reused . | . . . . . Traps Extracted . | . . . . . Installed . | . . . . . Triggered . | . . . . . Machines | -11 -10 -10 -10 -9 ---------- Run | Yrd Mat Min Exi Min Machines Disabled 1 | . 1 . . . Max in Single Turn 1 | . 1 . . . Machines Repaired . | . . . . . Machines Dismantled . | . . . . . Machines Sabotaged . | . . . . . Overloaded Fab Kills . | . . . . . Hacking | -11 -10 -10 -10 -9 --------- Run | Yrd Mat Min Exi Min Machines Accessed 8 | . 3 1 4 . Terminals 3 | . 3 . . . Fabricators . | . . . . . Repair Stations . | . . . . . Recycling Units . | . . . . . Scanalyzers . | . . . . . Garrison Access . | . . . . . Total Hacks 14 | . 9 1 4 . Successful 11 | . 6 1 4 . Failed 3 | . 3 . . . Catastrophic . | . . . . . Database Lockouts . | . . . . . Manual 9 | . 9 . . . Terminals 9 | . 9 . . . Fabricators . | . . . . . Repair Stations . | . . . . . Recycling Units . | . . . . . Scanalyzers . | . . . . . Garrison Access . | . . . . . Terminal Hacks 6 | . 1 1 4 . Record 4 | . . . 4 . Robot Analysis 1 | . 1 . . . Open Door 1 | . . 1 . . Fabricator Hacks . | . . . . . Repair Station Hacks . | . . . . . Recycling Unit Hacks . | . . . . . Scanalyzer . | . . . . . Garrison Access Hacks . | . . . . . Unauthorized Hacks 5 | . 5 . . . Terminals 5 | . 5 . . . Assimilate 1 | . 1 . . . Botnet 2 | . 2 . . . Skim 2 | . 2 . . . Fabricators . | . . . . . Repair Stations . | . . . . . Recycling Units . | . . . . . Scanalyzers . | . . . . . Garrison Access . | . . . . . Data Cores Recovered . | . . . . . Used . | . . . . . Hacking Detections 3 | . 3 . . . Full Trace Events . | . . . . . Feedback Events . | . . . . . Feedback Blocked . | . . . . . Robot Schematics Acquired . | . . . . . Robots Built . | . . . . . Authchips . | . . . . . Time . | . . . . . Total Robot Build Rating . | . . . . . Part Schematics Acquired . | . . . . . Parts Built . | . . . . . Authchips . | . . . . . Time . | . . . . . Total Part Build Rating . | . . . . . Parts Repaired . | . . . . . Time . | . . . . . Parts Recycled . | . . . . . Recycled Matter . | . . . . . Retrieved Matter . | . . . . . Retrieved Components . | . . . . . Parts Scanalyzed . | . . . . . Part Schematics Acquired . | . . . . . Parts Damaged . | . . . . . Bothacking | -11 -10 -10 -10 -9 ------------ Run | Yrd Mat Min Exi Min Used RIF Installer . | . . . . . Robots Hacked . | . . . . . Non-combat . | . . . . . Combat . | . . . . . Robot Hacks Applied . | . . . . . Relay Couplers Released . | . . . . . Fabnet Peak Effective % . | . . . . . Robots Rewired . | . . . . . Allies Hacked . | . . . . . Hacks Repelled . | . . . . . Allies | -11 -10 -10 -10 -9 -------- Run | Yrd Mat Min Exi Min Total Allies 1 | . 1 . . . Largest Group 1 | . 1 1 1 1 Highest-Rated Group 10 | . 10 10 10 10 Highest-Rated Ally 10 | . 10 10 10 10 Total Orders 2 | . 2 . . . STAY 1 | . 1 . . . FOLLOW 1 | . 1 . . . Ally Attacks . | . . . . . Total Damage . | . . . . . Kills . | . . . . . Allies Corrupted . | . . . . . Allies Melted . | . . . . . Intel | -11 -10 -10 -10 -9 ------- Run | Yrd Mat Min Exi Min Robot Analysis Total 1 | . 1 . . . Derelict Logs Recovered 2 | . . 1 . 1 Drone Launches . | . . . . . Drone Recoveries . | . . . . . Exploration | -11 -10 -10 -10 -9 ------------- Run | Yrd Mat Min Exi Min Turns Passed 1658 | 72 386 468 414 318 Spaces Moved 1343 | 46 286 319 427 265 Core 2 | 2 . . . . Treads 279 | . 90 188 . 1 Legs . | . . . . . Wheels 1062 | 44 196 131 427 264 Hover . | . . . . . Flight . | . . . . . Fastest Speed 50 | 50 95 95 95 110 Average Speed 111 | 88 115 133 95 110 Slowest Speed 240 | 95 160 160 110 240 Overloaded Moves . | . . . . . Propulsion Burnouts . | . . . . . Robots Hopped . | . . . . . Cave-ins Triggered . | . . . . . Exploration Rate (%) 51 | 5 37 60 80 74 Regions Visited 4 Branch Regions 3 Pre-discovered Areas 1 | . . 1 . . Known Exits Taken 1 | . . . 1 . Unknown Exits Taken 3 | 1 1 1 . . Scrap Searched 2 | . . . . 2 Spaces Dug . | . . . . . Terrain Destroyed 30 | . . . . 30 Melee . | . . . . . Projectile . | . . . . . AOE 30 | . . . . 30 Terrain Rammed . | . . . . . Walls Destroyed . | . . . . . Machines Disabled . | . . . . . Actions | -11 -10 -10 -10 -9 --------- Run | Yrd Mat Min Exi Min Total 1432 | 62 312 347 431 280 Wait 13 | 3 3 7 . . Move 1339 | 45 285 318 426 265 Hop . | . . . . . Pick Up 16 | 2 7 4 1 2 Fast Attach 7 | 6 1 . . . Attach . | . . . . . Detach . | . . . . . Swap 14 | . . 6 2 6 Drop 9 | . 1 5 2 1 Fire 34 | 6 15 7 . 6 Melee . | . . . . . Ram . | . . . . . Kick . | . . . . . Crush . | . . . . . Escape Stasis . | . . . . . Rewire . | . . . . . Trap . | . . . . . Miscellaneous . | . . . . . Route ------- -11/Scrapyard -10/Materials -10/Mines (discovered 2 exits: [*Mat] / *Exi) -10/Exiles (discovered 2 exits: *Min x2) -9/Mines History --------- Turn | Location | Event 12 | -11/Scrapyard | Discovered new exit (range 14) 73 | -11/Scrapyard | Entered Materials 302 | -10/Materials | Build established: Mutant 363 | -10/Materials | Discovered new exit (range 6) 459 | -10/Materials | Entered Mines 459 | -10/Mines | Accompanied by 1 ally 504 | -10/Mines | Learned location of Zion (-6) 770 | -10/Mines | Met a Derelict who couldn't figure out how to use a Trap Extractor 860 | -10/Mines | Deemed a non-threat by the Exiles lab entrance 860 | -10/Mines | Discovered new exit (range 5) 871 | -10/Mines | Discovered new exit (range 7) 927 | -10/Mines | Entered Exiles 927 | -10/Exiles | Found Exiles lab abandoned 927 | -10/Exiles | Accompanied by 1 ally 975 | -10/Exiles | Discovered new exit (range 14) 986 | -10/Exiles | Identified exit to Mines 1328 | -10/Exiles | Discovered exit to Mines (range 14) 1341 | -10/Exiles | Entered Mines 1341 | -9/Mines | Accompanied by 1 ally 1529 | -9/Mines | Learned Materials trap positions 1599 | -9/Mines | Found DCF Scrap (13 items) 1653 | -9/Mines | Assembled infested the area 1654 | -9/Mines | Received a Rocket Launcher from a helpful Derelict 1659 | -9/Mines | Self-destructed Last Messages --------------- 01643_ S-10 Pest destroyed. 01645_ R-06 Scavenger collects Flight Unit. 01648_ A derelict emerges from the shadows. 01649_ 5G-CG4(g): "Some of my friends down here think you need a mining laser when you travel the depths." 01650_ 5G-CG4(g): "They are crazy." 01651_ 5G-CG4(g): "Everyone knows a good old rocket launcher goes a long way." 01651_ Acquired 6 matter. 01652_ 5G-CG4(g): "Need to get rid of a swarm? Done. Need a big hole in the wall? Done." 01652_ The unstable cave ceiling collapses. 01653_ ALERT: Infestation in the mines, dispatching Demolisher response squad. 01653_ 5G-CG4(g): "Need a small hole in the wall? Leave that to the mining laser wimps, I say!" 01654_ 5G-CG4(g): "Would you like a rocket launcher? I know I would if I were you, so I'm going to lend you mine." 01654_ 5G-CG4(g) slips back into the shadows. 01656_ Discarded Signal Interpreter. Map ----- +----------------------------------------------------+ | | | | | | | | | | | ?????????????????????????????????????????? | | ?????????????????????????????????????????? | | ?????????????????????????????????????????? | | ?????????????????????????????????????????? | | ?????????????????????????#???????????????? | | ????????????????????????# ???????????????? | | ???????????????????????# ???????????????? | | ??????????????????????## ???????????????? | | ?????????????????????## ???????????????? | | ???????????????????### ???????????????? | | ???????????????????? ???????????????? | | ????????????????????#a #??????????????? | | ????????????????????# #??????????????? | | ???????????????#????# #??????????????? | | ??????????????## #### #??????????????? | | ??????????????? ##?????????????? | | ????????????????? #?????????????? | | ???????????????????# ##????????????? | | ????????????????????# ##???????????? | | ?????????????????????# ##??????????? | | ?????????????????????# @ #??????????? | | ?????????????????????# = ] #######????? | | ???????????????????### # # ###??? | | ??????????????????# t # ##?? | | ?????????????????# #?? | | ????????????????# * #?? | | ???????????????# ##?? | | ?????###???????# ####### ##### % ##??? | | ????## #??????###??????## #???###r ##??? | | ?#### ????????????????# #???## #??? | | ## ????????????????# #???# #??? | | # ???????????????##u ##### #??? | | ??????????????## = ! ##??? | | ? #????????????## =[** ##???? | | ??# #???????????# ### #####????? | | ???# ##?????????# #??#%#????????? | | #????# ###???????# #??#]#????????? | | #?????# ####????# #???#!#????????? | | #??????# ##??? #????#=#????????? | | #?????## #### #????#*#????????? | | #????## ######*#????????? | | ##??## #?# #????????? | | #### ## ##?# #####????????? | | #### #??????# #????????????? | | ##??# #??????# #????????????? | +----------------------------------------------------+ Best States ------------- Heat Dissipation 25 Energy Generation 14 Energy Capacity 240 Matter Stores 300 Matter Capacity 300 Sight Range 16 Robot Scan Range 15 Terrain Scan Density 10 Evasion (%) 44 Recoil Reduction 1 Item Schematics ----------------- None Robot Schematics ------------------ None Fabricated ------------ Nothing Alien Tech Used ----------------- None Achievements -------------- None Challenges ------------ None Game ------ Seed FlakCoolantObliterator Manual? 0 Play Time 00:23:58 Cumulative 38.5 hours Start 2024.09.04 @ 12:59:14 End 2024.09.04 @ 13:23:57 Sessions 1 Manual Loads 0 Difficulty Rogue Special Mode None Game No. 40 Rogue 40 Adventurer 0 Explorer 0 Win Type - Total 0 Types 0/0/0/0/0/0/0/0/0 Lore% 14 Gallery% 20 Achievement% 21 Wizard Run 0 Options --------- Layout 0 ASCII 0 Keyboard 0 Movement Numpad Keybinds 0 Fullscreen 1 Font 16/TerminusTall Map View 75x55 Zoom Use 0% Tactical HUD 1 Map Filters NONE Filters NONE Steam 1 RUN: f6ce94b7-a86f-46df-9e63-339a1cd62980